bitfinex/quotes_BTCUSD_20250110
["timestamp","ask_amount","ask_price","bid_price","bid_amount"]
[1736533675428,0.25,95104.0,95093.0,0.10429976]
[1736533675679,0.1,95104.0,95093.0,0.10429976]
[1736533676598,0.1,95094.0,95093.0,0.10429976]
[1736533676998,0.1,95094.0,95086.0,0.0211491]
[1736533677256,0.1,95094.0,95087.0,0.10429976]
[1736533677866,0.21031,95098.0,95087.0,0.10429976]
[1736533677868,0.1,95093.0,95087.0,0.10429976]
[1736533678105,0.1,95093.0,95082.0,0.09944161]
[1736533678361,0.210322,95092.0,95083.0,0.10429976]
[1736533678647,0.210322,95092.0,95069.0,0.0761]
[1736533678648,0.1,95087.0,95074.0,0.02099114]
[1736533678883,0.310334,95087.0,95075.0,1.60429976]
[1736533679319,0.1,95085.0,95075.0,1.60429976]
[1736533679494,0.1,95085.0,95083.0,0.001]
[1736533680750,0.310312,95097.0,95083.0,0.001]
[1736533681028,0.1,95092.0,95083.0,0.02124047]
[1736533681183,0.1,95092.0,95079.0,0.00105159]
[1736533681363,0.1,95092.0,95083.0,0.005]
[1736533682022,0.210324,95091.0,95083.0,0.005]
[1736533682429,0.1,95085.0,95083.0,0.005]
[1736533682626,0.1,95084.0,95083.0,0.01]
[1736533682837,0.1,95084.0,95083.0,0.011]
[1736533683041,0.1,95084.0,95083.0,0.006]
[1736533683260,0.1,95084.0,95083.0,0.008]
[1736533683601,0.1,95084.0,95083.0,0.006]
[1736533683983,0.003,95084.0,95083.0,0.006]
[1736533684187,0.1,95090.0,95083.0,0.005]
[1736533684392,0.210329,95089.0,95083.0,0.005]
[1736533684803,0.1,95090.0,95083.0,0.006]
[1736533685176,0.1,95090.0,95083.0,0.005]
[1736533685802,0.1,95090.0,95083.0,0.01]
[1736533686243,0.1,95090.0,95083.0,0.012]
[1736533686449,0.1,95090.0,95083.0,0.01]
[1736533686768,0.311327,95090.0,95083.0,0.01]
[1736533686969,0.101,95090.0,95083.0,0.01]
[1736533687343,0.001,95090.0,95083.0,0.01]
[1736533687542,0.001,95090.0,95088.0,0.210331]
[1736533687747,0.001,95090.0,95089.0,0.10429976]
[1736533687954,0.001,95090.0,95089.0,1.60429976]
[1736533688420,0.001,95090.0,95089.0,1.62563467]
[1736533689186,0.15014833,95110.0,95090.0,0.210327]
[1736533689360,0.00014833,95110.0,95093.0,0.21032]
[1736533689565,0.1,95100.0,95094.0,0.10429976]
[1736533690148,0.1,95100.0,95091.0,1.5]
[1736533690284,0.1,95101.0,95091.0,1.5]
[1736533691190,0.00814833,95110.0,95107.0,0.210287]
[1736533691349,0.00814833,95110.0,95093.0,0.001]
[1736533691350,0.00814833,95110.0,95099.0,0.210306]
[1736533691553,0.00814833,95110.0,95101.0,0.210302]
[1736533691767,0.00814833,95110.0,95101.0,0.10429976]
[1736533691977,0.00814833,95110.0,95102.0,0.13681261]
[1736533692192,0.00814833,95110.0,95107.0,0.23120801]
[1736533692419,0.00014833,95110.0,95107.0,0.02092001]
[1736533692574,0.00014833,95110.0,95109.0,0.210285]
[1736533692804,0.00014833,95110.0,95109.0,0.31458476]
[1736533692966,0.00014833,95110.0,95109.0,0.44646374]
[1736533693833,0.00014833,95110.0,95109.0,1.95046374]
[1736533694026,0.1,95133.0,95122.0,0.210255]
[1736533694230,0.1,95133.0,95123.0,0.10429976]
[1736533694471,0.1,95133.0,95123.0,0.31455176]
[1736533694683,0.1,95133.0,95123.0,0.36703314]
[1736533695106,0.1,95133.0,95126.0,0.02157922]
[1736533695812,0.1,95133.0,95127.0,0.10429976]
[1736533696237,0.1,95132.0,95126.0,0.02157922]
[1736533696422,0.1,95131.0,95126.0,0.02157922]
[1736533697858,0.1,95131.0,95126.0,0.02257922]
[1736533698286,0.1,95131.0,95126.0,0.02157922]
[1736533698713,0.1,95131.0,95126.0,0.02257922]
[1736533700061,0.1,95133.0,95127.0,0.10429976]
[1736533700470,0.1,95133.0,95127.0,0.31454376]
[1736533700622,0.1,95133.0,95127.0,0.10429976]
[1736533700830,0.1,95133.0,95127.0,0.13801286]
[1736533701058,0.1,95133.0,95127.0,0.10429976]
[1736533701665,0.1,95133.0,95127.0,0.10529976]
[1736533701874,0.1,95133.0,95127.0,0.001]
[1736533702260,0.25,95133.0,95127.0,0.001]
[1736533702457,0.25,95133.0,95127.0,0.003]
[1736533703480,0.1,95133.0,95127.0,0.003]
[1736533703904,0.345,95128.0,95127.0,0.003]
[1736533704291,0.54457814,95128.0,95127.0,0.003]
[1736533704495,0.56084169,95128.0,95127.0,0.003]
[1736533704699,0.555282,95110.0,95109.0,0.00049393]
[1736533705725,0.56591379,95110.0,95109.0,0.00049393]
[1736533705932,0.64721379,95110.0,95109.0,0.00049393]
[1736533706359,0.65221379,95110.0,95109.0,0.00149393]
[1736533706570,0.64721379,95110.0,95109.0,0.00149393]
[1736533707041,0.75151355,95110.0,95109.0,0.00149393]
[1736533707677,0.75151355,95110.0,95109.0,0.00049393]
[1736533707892,0.75251355,95110.0,95109.0,0.00049393]
[1736533708221,0.75651355,95110.0,95109.0,0.00049393]
[1736533709210,0.78949376,95110.0,95109.0,0.00049393]
[1736533709944,0.75651355,95110.0,95109.0,0.00049393]
[1736533710706,0.75551355,95110.0,95109.0,0.00049393]
[1736533710914,0.75151355,95110.0,95109.0,0.00049393]
[1736533711236,0.75351355,95110.0,95109.0,0.00049393]
[1736533711430,0.76151355,95110.0,95109.0,0.00149393]
[1736533711653,0.75951355,95110.0,95109.0,0.00149393]
[1736533711812,0.76151355,95110.0,95109.0,0.00149393]
[1736533713861,0.79449376,95110.0,95109.0,0.00149393]
[1736533716659,0.97070025,95110.0,95109.0,0.00149393]
[1736533717227,0.87070025,95110.0,95109.0,0.00149393]
[1736533717402,0.80801355,95110.0,95109.0,0.00149393]
[1736533717609,1.18080295,95110.0,95109.0,0.00049393]
[1736533717816,1.17880295,95110.0,95109.0,0.00049393]
[1736533718262,0.095,95074.0,95073.0,1.5]
[1736533718648,0.15,95072.0,95071.0,8.53e-05]
[1736533718856,0.15,95072.0,95071.0,0.0832853]
[1736533719481,0.15,95072.0,95071.0,8.53e-05]
[1736533719703,0.25049393,95072.0,95071.0,8.53e-05]
[1736533721048,0.25049393,95072.0,95071.0,0.0010853]
[1736533721256,0.34549393,95072.0,95071.0,0.0010853]
[1736533721677,0.34549393,95072.0,95071.0,8.53e-05]
[1736533721891,0.44979369,95072.0,95071.0,8.53e-05]
[1736533722661,0.555408,95053.0,95025.0,0.0489]
[1736533722966,0.69869425,95053.0,95026.0,0.0786]
[1736533723080,0.73167446,95053.0,95026.0,0.0786]
[1736533723284,0.73167446,95053.0,95015.0,0.02133844]
[1736533723486,0.70196797,95053.0,95018.0,0.0782855]
[1736533723759,0.66898776,95053.0,95018.0,0.0782855]
[1736533723964,0.82496797,95053.0,95018.0,8.55e-05]
[1736533724205,0.678426,95045.0,95044.0,3e-07]
[1736533724409,0.678426,95045.0,95018.0,8.55e-05]
[1736533724410,0.555484,95019.0,95018.0,8.55e-05]
[1736533724614,0.66906376,95019.0,95018.0,8.55e-05]
[1736533725642,0.66955739,95019.0,95018.0,8.55e-05]
[1736533725848,0.67155739,95019.0,95018.0,8.55e-05]
[1736533726044,0.67855739,95019.0,95018.0,8.55e-05]
[1736533726282,0.7115376,95019.0,95018.0,8.55e-05]
[1736533726697,0.67855739,95019.0,95018.0,8.55e-05]
[1736533727116,0.7115376,95019.0,95018.0,8.55e-05]
[1736533727291,0.72226852,95019.0,95018.0,8.55e-05]
[1736533727526,0.79747501,95019.0,95018.0,8.55e-05]
[1736533727738,0.79547501,95019.0,95018.0,8.55e-05]
[1736533727940,0.74997501,95019.0,95018.0,8.55e-05]
[1736533728147,0.74497501,95019.0,95018.0,8.55e-05]
[1736533728354,0.71526852,95019.0,95018.0,8.55e-05]
[1736533728556,0.74997501,95019.0,95018.0,8.55e-05]
[1736533728766,0.73369501,95019.0,95018.0,8.55e-05]
[1736533728971,0.84497501,95019.0,95018.0,8.55e-05]
[1736533729180,0.85197501,95019.0,95018.0,8.55e-05]
[1736533729407,0.84497501,95019.0,95018.0,8.55e-05]
[1736533729610,0.84497501,95019.0,94972.0,0.03691835]
[1736533729611,0.445,95015.0,94979.0,8.54e-05]
[1736533729820,0.555495,95014.0,95013.0,8e-07]
[1736533730029,0.555495,95014.0,94979.0,8.54e-05]
[1736533730030,0.30557,94980.0,94979.0,8.54e-05]
[1736533730247,0.31485,94980.0,94979.0,8.54e-05]
[1736533730664,0.095,94980.0,94979.0,8.54e-05]
[1736533730864,0.1050652,94980.0,94979.0,8.54e-05]
[1736533731250,0.10655852,94980.0,94979.0,8.54e-05]
[1736533731659,0.10555852,94980.0,94979.0,8.54e-05]
[1736533732460,0.10955852,94980.0,94979.0,8.54e-05]
[1736533732664,0.10555852,94980.0,94979.0,8.54e-05]
[1736533733239,0.00349332,94980.0,94979.0,8.54e-05]
[1736533733448,0.00049332,94980.0,94979.0,8.54e-05]
[1736533733837,0.00149332,94980.0,94979.0,8.54e-05]
[1736533734171,0.00049332,94980.0,94979.0,8.54e-05]
[1736533734577,0.00249332,94980.0,94979.0,0.0010854]
[1736533734809,0.00249332,94980.0,94979.0,0.1525296]
[1736533735019,0.00049332,94980.0,94979.0,0.15147681]
[1736533735231,0.00149332,94980.0,94979.0,0.10438516]
[1736533735628,0.00049332,94980.0,94979.0,0.10438516]
[1736533735851,0.00049332,94980.0,94979.0,0.10543788]
[1736533736054,0.00149332,94980.0,94979.0,0.10543788]
[1736533736267,0.00149332,94980.0,94979.0,0.10438516]
[1736533736496,0.00149332,94980.0,94979.0,0.16080678]
[1736533736675,0.00149332,94980.0,94979.0,0.16380678]
[1736533736876,0.00149332,94980.0,94979.0,1.66380678]
[1736533737232,0.00149332,94980.0,94979.0,1.66080678]
[1736533737831,0.00149332,94980.0,94979.0,1.66480678]
[1736533738246,0.00149332,94980.0,94979.0,0.16480678]
[1736533739420,0.00149332,94980.0,94979.0,0.0040854]
[1736533739983,0.00049332,94980.0,94979.0,0.0040854]
[1736533740297,0.00049332,94980.0,94979.0,8.54e-05]
[1736533740698,0.00049332,94980.0,94979.0,0.0030854]
[1736533741056,0.00049332,94980.0,94979.0,0.10738516]
[1736533741185,0.00049332,94980.0,94979.0,0.0030854]
[1736533741531,0.00149332,94980.0,94979.0,8.54e-05]
[1736533741872,0.00049332,94980.0,94979.0,0.0030854]
[1736533742054,0.00149332,94980.0,94979.0,0.0030854]
[1736533742703,0.00049332,94980.0,94979.0,0.0030854]
[1736533743137,0.09549332,94980.0,94979.0,8.54e-05]
[1736533743537,0.09549332,94980.0,94979.0,0.0030854]
[1736533743734,0.00049332,94980.0,94979.0,0.0030854]
[1736533744164,0.00049332,94980.0,94979.0,8.54e-05]
[1736533744566,0.00049332,94980.0,94979.0,0.0010854]
[1736533744987,0.00049332,94980.0,94979.0,8.54e-05]
[1736533745368,0.00149332,94980.0,94979.0,8.54e-05]
[1736533745779,0.00049332,94980.0,94979.0,8.54e-05]
[1736533745967,0.00149332,94980.0,94979.0,8.54e-05]
[1736533746372,0.00149332,94980.0,94979.0,0.0010854]
[1736533746578,0.19727852,94980.0,94979.0,0.0010854]
[1736533746836,0.19627852,94980.0,94979.0,8.54e-05]
[1736533747193,0.34627852,94980.0,94979.0,0.0020854]
[1736533747394,0.34549332,94980.0,94979.0,0.0020854]
[1736533747593,0.34549332,94980.0,94979.0,8.54e-05]
[1736533748200,0.34649332,94980.0,94979.0,0.0010854]
[1736533748687,0.34549332,94980.0,94979.0,0.0010854]
[1736533748864,0.35591587,94980.0,94979.0,0.0010854]
[1736533749620,0.35591587,94980.0,94979.0,8.54e-05]
[1736533749824,0.00049332,94980.0,94979.0,0.0010854]
[1736533750033,0.00977332,94980.0,94979.0,0.0010854]
[1736533750245,0.22034332,94980.0,94979.0,0.0010854]
[1736533750469,0.00977332,94980.0,94979.0,0.0010854]
[1736533750684,0.00049332,94980.0,94979.0,0.0010854]
[1736533752159,0.00049332,94980.0,94979.0,0.0811854]
[1736533753475,0.00049332,94980.0,94979.0,0.14012695]
[1736533754230,0.00049332,94980.0,94979.0,0.0811854]
[1736533754649,0.00049332,94980.0,94979.0,0.0010854]
[1736533755920,0.34549332,94980.0,94979.0,0.0010854]
[1736533757800,0.25049332,94980.0,94979.0,0.0010854]
[1736533758017,0.00049332,94980.0,94979.0,0.0010854]
[1736533758429,0.10049332,94980.0,94979.0,0.0010854]
[1736533758634,0.00049332,94980.0,94979.0,0.0010854]
[1736533759042,0.00049332,94980.0,94979.0,0.20691951]
[1736533759256,0.00049332,94980.0,94979.0,1.70691951]
[1736533759458,0.00049332,94980.0,94979.0,1.73942482]
[1736533760009,0.00049332,94980.0,94979.0,1.73842482]
[1736533760203,0.00049332,94980.0,94979.0,1.74342482]
[1736533760433,0.00149332,94980.0,94979.0,1.74342482]
[1736533760632,0.00149332,94980.0,94979.0,1.76487464]
[1736533761168,0.00149332,94980.0,94979.0,1.75987464]
[1736533761584,0.00149332,94980.0,94979.0,1.76487464]
[1736533762046,0.00049332,94980.0,94979.0,1.76487464]
[1736533762252,0.00049332,94980.0,94979.0,0.26487464]
[1736533762424,0.00149332,94980.0,94979.0,0.26587464]
[1736533762852,0.00149332,94980.0,94979.0,0.20833498]
[1736533763718,0.00149332,94980.0,94979.0,0.20333498]
[1736533764070,0.00149332,94980.0,94979.0,0.20733498]
[1736533764501,0.00149332,94980.0,94979.0,0.20333498]
[1736533764873,0.00149332,94980.0,94979.0,0.20733498]
[1736533765032,0.00149332,94980.0,94979.0,0.3009374]
[1736533765620,0.00149332,94980.0,94979.0,0.2999374]
[1736533765621,0.00049332,94980.0,94979.0,0.2999374]
[1736533766254,0.00149332,94980.0,94979.0,0.3009374]
[1736533766456,0.00049332,94980.0,94979.0,0.2999374]
[1736533766894,0.00149332,94980.0,94979.0,1.8009374]
[1736533767167,0.00149332,94980.0,94979.0,1.83846107]
[1736533767363,0.310483,95020.0,94987.0,0.0796]
[1736533767364,0.095,95019.0,94987.0,0.0796]
[1736533767564,0.1,95020.0,95007.0,0.210509]
[1736533767765,0.09420628,95030.0,95014.0,0.210494]
[1736533768012,0.1,95033.0,95017.0,0.210488]
[1736533768222,0.1,95033.0,95018.0,0.10429976]
[1736533768632,0.1,95033.0,95018.0,0.13577934]
[1736533768750,0.1,95033.0,95018.0,0.12574674]
[1736533768968,0.00928,95046.0,95019.0,0.00105228]
[1736533769192,0.095,95048.0,95034.0,0.0816]
[1736533769421,0.095,95048.0,95034.0,0.19405976]
[1736533769422,0.1,95039.0,95034.0,0.19405976]
[1736533769628,0.004,95033.0,95020.0,0.0816]
[1736533769835,0.004,95033.0,95021.0,1.60429976]
[1736533770032,0.1,95039.0,95021.0,1.60429976]
[1736533770233,0.15,95044.0,95034.0,0.001]
[1736533770434,0.1,95039.0,95034.0,0.001]
[1736533770639,0.095,95035.0,95021.0,0.10429976]
[1736533771015,0.095,95035.0,95022.0,0.02074951]
[1736533771205,0.095,95035.0,95021.0,0.001]
[1736533772038,0.1,95038.0,95022.0,0.210477]
[1736533772247,0.310443,95038.0,95021.0,0.001]
[1736533772449,0.1,95038.0,95022.0,0.10429976]
[1736533772652,0.095,95045.0,95028.0,0.210462]
[1736533772857,0.1,95039.0,95029.0,0.15692866]
[1736533773066,0.15,95044.0,95029.0,0.15692866]
[1736533773280,0.1,95042.0,95029.0,0.15692866]
[1736533774629,0.15928,95048.0,95020.0,0.0816]
[1736533774630,0.305448,95035.0,95020.0,0.0816]
[1736533774850,0.210453,95033.0,95020.0,0.10429976]
[1736533775052,0.210453,95033.0,95029.0,0.001]
[1736533775254,0.405451,95034.0,95029.0,0.001]
[1736533775471,0.195,95034.0,95029.0,0.001]
[1736533775746,0.345,95030.0,95029.0,0.001]
[1736533776014,0.345,95030.0,95029.0,0.002]
[1736533776264,0.210483,95020.0,95018.0,0.00014833]
[1736533776508,0.1,95019.0,95018.0,0.00014833]
[1736533776779,0.095,95029.0,95018.0,0.00014833]
[1736533777141,0.21046,95030.0,95018.0,0.00014833]
[1736533777244,0.1,95024.0,95018.0,0.00014833]
[1736533777783,0.210475,95023.0,95018.0,0.00014833]
[1736533778034,0.095,95020.0,95018.0,0.00014833]
[1736533778799,0.210484,95019.0,95018.0,0.00014833]
[1736533779323,0.095,95020.0,95018.0,0.00214833]
[1736533779575,0.305476,95023.0,95018.0,0.00014833]
[1736533779840,0.1,95024.0,95018.0,0.00214833]
[1736533780109,0.1,95024.0,95018.0,0.00014833]
[1736533780369,0.095,95032.0,95019.0,0.10429976]
[1736533780931,0.305457,95032.0,95019.0,0.10429976]
[1736533781679,0.001,95032.0,95019.0,0.10429976]
[1736533781890,0.001,95032.0,95021.0,0.0784]
[1736533782115,0.001,95032.0,95031.0,0.210457]
[1736533782337,0.001,95032.0,95031.0,0.31475676]
[1736533782570,0.004,95032.0,95031.0,0.10429976]
[1736533782779,0.001,95032.0,95031.0,0.10429976]
[1736533782953,0.00924,95040.0,95031.0,0.10429976]
[1736533783170,0.004,95032.0,95031.0,0.10429976]
[1736533783364,0.004,95032.0,95021.0,0.0784]
[1736533783565,0.004,95032.0,95022.0,0.13789379]
[1736533783808,0.004,95032.0,95024.0,0.02147649]
[1736533783935,0.095,95035.0,95024.0,0.02147649]
[1736533784373,0.095,95035.0,95022.0,0.10429976]
[1736533784374,0.21045,95034.0,95022.0,0.10429976]
[1736533784906,0.21045,95034.0,95022.0,0.10529976]
[1736533785092,0.305468,95026.0,95022.0,0.001]
[1736533785341,0.095,95026.0,95022.0,0.001]
[1736533785926,0.095,95023.0,95022.0,0.001]
[1736533786127,0.210478,95022.0,95018.0,0.00014833]
[1736533786676,0.210468,95026.0,95018.0,0.00014833]
[1736533787314,0.095,95028.0,95022.0,0.002]
[1736533787521,0.1,95027.0,95022.0,0.002]
[1736533787992,0.001,95026.0,95022.0,0.002]
[1736533788191,0.001,95026.0,95023.0,0.31477476]
[1736533788485,0.095,95038.0,95023.0,0.31477476]
[1736533788486,0.095,95038.0,95026.0,0.004]
[1736533788726,0.1,95040.0,95026.0,0.10829976]
[1736533788922,0.1,95040.0,95027.0,0.210466]
[1736533789127,0.210429,95044.0,95029.0,0.210462]
[1736533789337,0.03298021,95072.0,95027.0,0.286666]
[1736533789338,0.0001708,95052.0,95038.0,0.210441]
[1736533789747,0.095,95047.0,95035.0,0.210448]
[1736533790050,0.1,95046.0,95039.0,0.0210441]
[1736533790281,0.2105828,95052.0,95039.0,0.10429976]
[1736533790282,0.008,95040.0,95039.0,0.10429976]
[1736533790455,0.1,95049.0,95039.0,0.10429976]
[1736533790593,0.1,95049.0,95039.0,0.125513]
[1736533791058,0.0001708,95052.0,95039.0,0.125513]
[1736533791059,0.002,95044.0,95040.0,0.52517376]
[1736533791721,0.0871708,95064.0,95048.0,0.210419]
[1736533791937,0.009,95052.0,95049.0,0.12639359]
[1736533792145,0.210371,95070.0,95051.0,0.210413]
[1736533792146,0.1871708,95070.0,95051.0,0.210413]
[1736533792400,0.1871708,95070.0,95053.0,0.210408]
[1736533792623,0.0871708,95072.0,95054.0,0.10429976]
[1736533792836,0.0001708,95074.0,95059.0,0.210394]
[1736533793040,0.0871708,95072.0,95060.0,0.23711452]
[1736533793247,0.420738,95071.0,95060.0,0.10429976]
[1736533793448,0.001,95070.0,95060.0,0.10429976]
[1736533793776,0.0871708,95072.0,95060.0,0.10429976]
[1736533794963,0.0891708,95072.0,95060.0,0.10429976]
[1736533795161,0.0001708,95074.0,95060.0,0.10429976]
[1736533795370,0.0871708,95072.0,95061.0,0.05464702]
[1736533795770,0.0871708,95072.0,95060.0,0.10429976]
[1736533796214,0.0001708,95074.0,95061.0,0.00105184]
[1736533796400,0.0001708,95074.0,95057.0,0.02122409]
[1736533796401,0.0001708,95074.0,95062.0,0.31468876]
[1736533796612,0.0001708,95074.0,95062.0,0.10429976]
[1736533797425,0.0001708,95074.0,95062.0,0.10177976]
[1736533797586,0.0001708,95074.0,95063.0,0.05458487]
[1736533797807,0.0001708,95074.0,95068.0,0.210375]
[1736533798006,0.0001708,95074.0,95063.0,0.05458487]
[1736533798007,0.0001708,95074.0,95070.0,0.210371]
[1736533798205,0.0001708,95074.0,95072.0,0.256866]
[1736533798456,0.0001708,95074.0,95073.0,0.10429976]
[1736533798594,0.0001708,95074.0,95073.0,1.6911821]
[1736533798795,0.0001708,95074.0,95073.0,1.69013054]
[1736533799546,0.0011708,95074.0,95073.0,1.69013054]
[1736533799752,0.0001708,95074.0,95073.0,1.69013054]
[1736533799970,0.0001708,95074.0,95073.0,1.69813054]
[1736533800170,0.0011708,95074.0,95073.0,1.69813054]
[1736533800398,0.1871708,95099.0,95074.0,0.0488292]
[1736533800399,0.3974788,95099.0,95074.0,0.0488292]
[1736533800640,0.0794,95125.0,95079.0,0.0808]
[1736533800847,0.210256,95122.0,95081.0,0.10429976]
[1736533801065,0.0871708,95120.0,95083.0,0.210342]
[1736533801274,0.0871708,95120.0,95102.0,0.210299]
[1736533801275,0.0871708,95118.0,95102.0,0.210299]
[1736533801506,0.259445,95127.0,95106.0,0.210291]
[1736533801507,0.01033258,95127.0,95106.0,0.210291]
[1736533801693,0.0871708,95126.0,95108.0,0.210287]
[1736533801895,0.0871708,95120.0,95108.0,1.5]
[1736533802102,0.0873418,95109.0,95108.0,1.5]
[1736533802308,0.0873418,95109.0,95079.0,0.0786]
[1736533802309,0.210313,95096.0,95079.0,0.0786]
[1736533802557,0.0871708,95097.0,95090.0,0.02098253]
[1736533802558,0.0871708,95091.0,95090.0,0.02098253]
[1736533802740,0.0871708,95088.0,95074.0,0.0508292]
[1736533802924,0.0871708,95091.0,95077.0,0.02083929]
[1736533803141,0.1,95096.0,95083.0,0.210341]
[1736533803353,0.1,95096.0,95084.0,0.10535132]
[1736533803527,0.0871708,95097.0,95084.0,0.10429976]
[1736533803735,0.09990741,95096.0,95084.0,0.10535132]
[1736533803936,0.09990741,95096.0,95085.0,0.03156923]
[1736533804144,0.2975008,95089.0,95077.0,0.02083929]
[1736533804345,0.2975008,95089.0,95077.0,0.12513905]
[1736533804549,0.0871708,95080.0,95077.0,0.02083929]
[1736533804749,0.09990741,95091.0,95074.0,0.0488292]
[1736533804750,0.0871708,95079.0,95074.0,0.0488292]
[1736533804948,0.210353,95078.0,95074.0,0.0488292]
[1736533805507,0.210353,95078.0,95074.0,0.05576833]
[1736533805694,0.210353,95078.0,95074.0,0.10576833]
[1736533805909,0.00049393,95078.0,95074.0,0.10576833]
[1736533806113,0.21084793,95078.0,95074.0,0.10676833]
[1736533806338,0.42120193,95078.0,95074.0,0.10228833]
[1736533806592,0.42120193,95078.0,95074.0,0.10128833]
[1736533806835,0.0871708,95075.0,95074.0,0.0943492]
[1736533807039,0.0871708,95075.0,95074.0,0.0953492]
[1736533808287,0.0871708,95075.0,95074.0,0.0943492]
[1736533808500,0.44216317,95075.0,95074.0,0.0943492]
[1736533808704,0.51877797,95075.0,95074.0,0.0943492]
[1736533808906,0.55175816,95075.0,95074.0,0.0953492]
[1736533809579,0.4474584,95075.0,95074.0,0.0943492]
[1736533809790,0.2274,95075.0,95074.0,0.0943492]
[1736533810000,0.210362,95074.0,95055.0,0.0827]
[1736533810171,0.2975328,95074.0,95060.0,0.210393]
[1736533810522,0.2975328,95074.0,95056.0,0.11372678]
[1736533810523,0.420742,95070.0,95061.0,0.10429976]
[1736533810696,0.0871708,95074.0,95063.0,0.02113284]
[1736533810923,0.0871708,95066.0,95056.0,0.00837519]
[1736533811075,0.210406,95055.0,95052.0,0.02108861]
[1736533811288,0.0871708,95061.0,95044.0,0.0827]
[1736533811497,0.210396,95059.0,95051.0,0.02157724]
[1736533811705,0.210397,95058.0,95051.0,0.02157724]
[1736533812086,0.0871708,95061.0,95051.0,0.02157724]
[1736533812328,0.001,95055.0,95051.0,0.02157724]
[1736533812564,0.210393,95060.0,95051.0,0.02157724]
[1736533812942,0.003,95058.0,95051.0,0.02157724]
[1736533813158,0.210376,95068.0,95051.0,0.02157724]
[1736533813159,0.0871708,95077.0,95056.0,0.2104]
[1736533813358,0.18707821,95079.0,95058.0,0.210397]
[1736533813557,0.210355,95077.0,95060.0,0.210393]
[1736533813760,0.18707821,95079.0,95064.0,0.210383]
[1736533814092,0.18707821,95079.0,95065.0,0.10429976]
[1736533814275,0.18707821,95079.0,95065.0,0.13983498]
[1736533814492,0.00924,95083.0,95072.0,0.02077696]
[1736533814694,0.0871708,95091.0,95073.0,0.31571544]
[1736533814825,0.0871708,95086.0,95074.0,0.00105165]
[1736533815024,0.0871708,95086.0,95074.0,0.10429976]
[1736533815245,0.2975068,95086.0,95074.0,0.10429976]
[1736533815818,0.00249393,95078.0,95074.0,0.10429976]
[1736533816229,0.00049393,95078.0,95075.0,0.10535145]
[1736533816470,0.00049393,95078.0,95075.0,0.52607045]
[1736533816686,0.00049393,95078.0,95076.0,1.5]
[1736533816687,1e-08,95078.0,95076.0,1.5]
[1736533816877,0.0871708,95104.0,95078.0,0.210353]
[1736533817078,0.210457,95109.0,95079.0,0.10535124]
[1736533817079,0.000171,95109.0,95079.0,0.10535124]
[1736533817296,0.0871708,95098.0,95085.0,0.210336]
[1736533817487,0.10086361,95109.0,95091.0,0.0214342]
[1736533817731,0.0871708,95099.0,95091.0,0.0214342]
[1736533817995,0.000171,95109.0,95078.0,0.00014833]
[1736533817996,0.09990741,95090.0,95078.0,0.00014833]
[1736533818199,0.09990741,95090.0,95080.0,0.02066742]
[1736533818399,0.09990741,95090.0,95081.0,0.10429976]
[1736533818606,0.15,95091.0,95081.0,0.10429976]
[1736533818753,0.0871708,95101.0,95082.0,0.00105161]
[1736533818993,0.0871708,95101.0,95090.0,0.210325]
[1736533819191,0.0871708,95101.0,95090.0,0.31462476]
[1736533819400,0.0871708,95101.0,95091.0,0.05249628]
[1736533819983,0.15,95104.0,95093.0,0.0802]
[1736533819984,0.2371708,95104.0,95093.0,0.0802]
[1736533820187,0.2371708,95104.0,95100.0,0.02070494]
[1736533820188,0.15,95104.0,95100.0,0.02070494]
[1736533820433,0.00924,95117.0,95100.0,0.02070494]
[1736533820434,0.0871708,95113.0,95101.0,0.1053512]
[1736533820611,0.09990741,95111.0,95101.0,0.10429976]
[1736533820835,0.0871708,95101.0,95080.0,0.03854745]
[1736533821040,0.0871708,95091.0,95090.0,0.02073653]
[1736533821256,0.2974948,95091.0,95090.0,0.02073653]
[1736533821480,0.0871708,95091.0,95090.0,0.02073653]
[1736533822324,0.0871708,95091.0,95078.0,0.07954833]
[1736533822526,0.0871708,95085.0,95078.0,0.00014833]
[1736533822736,0.15,95084.0,95078.0,0.00014833]
[1736533823342,0.09990741,95083.0,95078.0,0.00014833]
[1736533823561,0.0871708,95079.0,95078.0,0.00214833]
[1736533824003,0.33707821,95079.0,95078.0,0.00414833]
[1736533824221,0.37216089,95079.0,95078.0,0.00414833]
[1736533825020,0.28499009,95079.0,95078.0,0.00214833]
[1736533825258,0.33707821,95079.0,95078.0,0.00214833]
[1736533825543,0.2371708,95079.0,95078.0,0.00314833]
[1736533825840,0.33707821,95079.0,95078.0,0.00014833]
[1736533826241,0.33707821,95079.0,95078.0,0.00314833]
[1736533826453,0.55206065,95079.0,95078.0,0.00014833]
[1736533826697,0.62326065,95079.0,95078.0,0.00014833]
[1736533826897,0.62326065,95079.0,95078.0,3.3e-07]
[1736533826898,0.82326065,95079.0,95078.0,3.3e-07]
[1736533827105,0.85296714,95079.0,95078.0,3.3e-07]
[1736533827323,0.85296714,95079.0,95078.0,0.00100033]
[1736533827324,0.85896714,95079.0,95078.0,0.00100033]
[1736533827529,0.46007821,95075.0,95074.0,0.0979689]
[1736533827793,0.56437797,95075.0,95074.0,0.0979689]
[1736533828010,0.59946065,95075.0,95074.0,0.0979689]
[1736533828434,0.72916714,95075.0,95074.0,0.01027116]
[1736533828641,0.4476188,95035.0,95034.0,8.53e-05]
[1736533828854,0.54752621,95035.0,95034.0,0.00057923]
[1736533829293,0.58260889,95035.0,95034.0,0.00057923]
[1736533829496,0.54752621,95035.0,95034.0,0.00057923]
[1736533829701,0.58260889,95035.0,95034.0,0.00057923]
[1736533829903,0.54752621,95035.0,95034.0,0.00057923]
[1736533830351,0.4506188,95035.0,95034.0,0.00057923]
[1736533830556,0.55052621,95035.0,95034.0,0.00057923]
[1736533831619,0.71289955,95035.0,95034.0,0.00057923]
[1736533831843,0.94260604,95035.0,95034.0,0.00057923]
[1736533832048,0.95321782,95035.0,95034.0,0.00057923]
[1736533832253,0.0871708,94996.0,94995.0,8.53e-05]
[1736533832465,0.0871708,94996.0,94995.0,0.00023316]
[1736533832690,0.2371708,94996.0,94995.0,0.00023316]
[1736533832899,0.33786341,94996.0,94995.0,0.00023316]
[1736533833108,0.37216089,94996.0,94995.0,0.00023316]
[1736533833702,0.38241618,94996.0,94995.0,0.00023316]
[1736533833933,0.38541618,94996.0,94995.0,0.00023316]
[1736533834139,0.38241618,94996.0,94995.0,0.00023316]